bitfinex-derivatives/quotes_SOLF0:USTF0_20250131
["timestamp","ask_amount","ask_price","bid_price","bid_amount"]
[1738301130906,0.02772791,236.99,236.95,11.59851209]
[1738301131805,0.02772791,236.99,236.95,7.37771209]
[1738301134508,0.02772791,236.99,236.94,4.221]
[1738301135009,0.02772791,236.99,236.93,7.37771209]
[1738301135308,0.02772791,236.99,236.96,4.2207]
[1738301135911,4.2199,237.01,236.96,4.2205]
[1738301137109,4.25134563,237.01,236.96,4.25008696]
[1738301137506,0.03144563,237.01,236.97,4.2205]
[1738301140309,0.03144563,237.01,236.96,0.02958696]
[1738301141908,4.25124563,237.01,236.96,0.02958696]
[1738301142912,4.25124563,237.01,236.96,4.25028696]
[1738301148816,4.25124563,237.01,236.96,0.02958696]
[1738301149809,4.2201,237.0,236.96,0.02958696]
[1738301153920,4.2202,236.99,236.96,0.02958696]
[1738301160930,0.03144563,237.01,236.97,7.37771209]
[1738301161134,0.03144563,237.01,236.99,7.37771209]
[1738301162234,0.03144563,237.01,237.0,4.22]
[1738301163533,0.03144563,237.01,236.97,7.37771209]
[1738301163729,0.03144563,237.01,236.98,4.2202]
[1738301164127,7.37771209,236.99,236.96,0.02958696]
[1738301165230,4.22,237.0,236.96,0.02958696]
[1738301167240,4.22,237.0,236.96,4.25028696]
[1738301168139,7.40915772,237.01,236.96,0.02958696]
[1738301168337,4.2205,236.98,236.96,0.02958696]
[1738301168541,7.37771209,236.99,236.96,0.02958696]
[1738301169845,4.2203,236.98,236.96,0.02958696]
[1738301170041,7.37771209,236.99,236.96,0.02958696]
[1738301170446,0.03144563,237.01,236.96,0.02958696]
[1738301170447,11.59821209,236.97,236.96,0.02958696]
[1738301173045,4.2203,236.98,236.96,0.02958696]
[1738301175048,4.2205,236.97,236.96,0.02958696]
[1738301177751,11.59821209,236.97,236.96,0.02958696]
[1738301181247,7.37771209,236.97,236.96,0.02958696]
[1738301183651,7.37771209,236.99,236.96,0.02958696]
[1738301189662,7.37771209,236.99,236.96,4.25018696]
[1738301189960,7.37771209,236.99,236.96,0.02958696]
[1738301191059,7.37771209,236.99,236.97,4.2204]
[1738301191761,7.37771209,236.99,236.96,0.02958696]
[1738301191963,7.37771209,236.99,236.98,4.2203]
[1738301193360,10.19315772,237.01,237.0,4.22]
[1738301193558,0.03144563,237.01,237.0,4.22]
[1738301207073,4.563e-05,237.01,237.0,4.22]
[1738301208275,4.563e-05,237.01,237.0,5.567]
[1738301208572,7.37771209,237.13,237.12,4.2179]
[1738301214983,7.37771209,237.17,237.1,0.02961134]
[1738301215175,7.37771209,237.19,237.13,7.37771209]
[1738301215580,7.37771209,237.19,237.14,0.02672264]
[1738301217184,7.37771209,237.19,237.17,4.2168]
[1738301221383,7.37771209,237.19,237.15,4.2172]
[1738301221685,7.37771209,237.17,237.15,4.2172]
[1738301223088,7.37771209,237.19,237.15,4.2172]
[1738301224288,11.59431209,237.19,237.15,4.2172]
[1738301225890,7.37771209,237.17,237.14,4.24422264]
[1738301226592,7.37771209,237.17,237.15,4.2173]
[1738301226790,7.37771209,237.19,237.15,4.2173]
[1738301227290,7.37771209,237.19,237.14,0.02672264]
[1738301227491,7.37771209,237.19,237.14,4.24422264]
[1738301228688,7.37771209,237.19,237.15,4.2173]
[1738301229491,7.37771209,237.21,237.17,4.2169]
[1738301230593,7.37771209,237.21,237.15,4.2172]
[1738301230793,7.37771209,237.19,237.15,4.2172]
[1738301233093,7.37771209,237.19,237.14,0.02672264]
[1738301233289,11.59401209,237.21,237.14,0.02672264]
[1738301234191,11.59401209,237.21,237.17,4.217]
[1738301236189,7.37771209,237.21,237.17,4.217]
[1738301237593,7.37771209,237.19,237.14,0.02672264]
[1738301237797,7.37771209,237.19,237.16,4.2171]
[1738301256006,11.59401209,237.21,237.14,0.02672264]
[1738301256207,11.59401209,237.21,237.17,4.2169]
[1738301258911,11.59401209,237.21,237.14,0.02672264]
[1738301259712,11.59401209,237.21,237.16,4.2171]
[1738301264218,7.37771209,237.19,237.15,4.2173]
[1738301265218,4.2168,237.18,237.15,4.2173]
[1738301266217,7.37771209,237.17,237.14,0.02672264]
[1738301266419,7.37771209,237.15,237.14,0.02672264]
[1738301267115,11.59501209,237.15,237.14,0.02672264]
[1738301269626,4.2181,237.11,237.05,192.89693869]
[1738301269818,7.37771209,237.1,237.05,192.89693869]
[1738301270013,7.37771209,237.08,237.05,192.89693869]
[1738301270911,0.02763318,237.09,237.05,192.89693869]
[1738301271619,0.02763318,237.09,237.04,4.24897653]
[1738301272024,7.37771209,237.08,237.04,4.24897653]
[1738301273921,7.37771209,237.08,237.04,0.02967653]
[1738301274117,11.59631209,237.08,237.04,0.02967653]
[1738301276723,7.37771209,237.08,237.04,0.02967653]
[1738301278622,7.37771209,237.06,237.04,0.02967653]
[1738301280022,4.2191,237.05,237.04,0.02967653]
[1738301303858,11.59801209,236.99,236.93,11.59891209]
[1738301304956,0.02660238,236.98,236.94,0.02886105]
[1738301305655,4.24700238,236.98,236.94,0.02886105]
[1738301306952,0.02660238,236.98,236.94,0.02886105]
[1738301307255,4.2205,236.97,236.94,0.02886105]
[1738301309758,4.2207,236.96,236.94,0.02886105]
[1738301314065,4.2205,236.97,236.94,0.02886105]
[1738301321067,4.2205,236.97,236.94,4.24996105]
[1738301326571,4.24700238,236.98,236.94,4.24996105]
[1738301334572,0.02660238,236.98,236.94,0.02886105]
[1738301334774,0.02660238,236.98,236.97,4.2205]
[1738301337377,4.2207,236.96,236.94,0.02886105]
[1738301339179,4.2209,236.95,236.94,0.02886105]
[1738301339878,11.59861209,236.95,236.94,0.02886105]
[1738301350983,11.59831209,236.97,236.94,0.02886105]
[1738301351286,0.02660238,236.98,236.94,0.02886105]
[1738301352084,11.62481447,236.98,236.94,0.02886105]
[1738301355288,7.40431447,236.98,236.94,0.02886105]
[1738301355587,4.2205,236.97,236.94,0.02886105]
[1738301356083,0.02660238,236.98,236.97,4.2205]
[1738301358683,7.37771209,237.11,236.96,7.37771209]
[1738301358890,7.37771209,237.15,237.07,7.37771209]
[1738301359080,11.59511209,237.15,237.07,7.37771209]
[1738301359282,7.37771209,237.09,237.02,4.2196]
[1738301359486,7.37771209,237.07,237.02,4.2196]
[1738301359682,7.40928169,237.07,237.02,4.2196]
[1738301359888,7.40928169,237.07,237.02,4.25041344]
[1738301361086,0.0315696,237.07,237.06,7.37771209]
[1738301361287,7.37771209,237.19,237.06,7.37771209]
[1738301361489,7.37771209,237.21,237.14,7.37771209]
[1738301361992,7.37771209,237.19,237.12,7.37771209]
[1738301362387,7.37771209,237.19,237.13,0.02710828]
[1738301363189,7.37771209,237.19,237.13,4.24470828]
[1738301364993,4.2165,237.2,237.13,4.24470828]
[1738301365490,4.2165,237.2,237.14,11.59521209]
[1738301365891,11.59401209,237.21,237.14,11.59521209]
[1738301366696,11.59401209,237.21,237.15,4.2173]
[1738301367294,4.2165,237.2,237.14,7.37771209]
[1738301368092,7.37771209,237.16,237.13,0.02710828]
[1738301368291,7.37771209,237.14,237.13,0.02710828]
[1738301370290,11.59521209,237.14,237.13,0.02710828]
[1738301371492,7.37771209,237.14,237.13,0.02710828]
[1738301377102,4.2175,237.14,237.13,0.02710828]
[1738301384613,7.37771209,237.16,237.13,0.02710828]
[1738301384809,7.37771209,237.2,237.13,0.02710828]
[1738301385210,4.2166,237.19,237.14,4.2174]
[1738301386406,7.37771209,237.2,237.13,0.02710828]
[1738301386603,11.59411209,237.2,237.15,4.2173]
[1738301388711,7.37771209,237.28,237.2,4.2164]
[1738301389316,7.37771209,237.28,237.22,0.02965652]
[1738301390010,7.37771209,237.26,237.22,0.02965652]
[1738301390212,7.37771209,237.24,237.22,0.02965652]
[1738301391013,4.2159,237.23,237.22,0.02965652]
[1738301401516,7.37771209,237.24,237.12,0.15193]
[1738301401722,11.59461209,237.18,237.12,0.15193]
[1738301402021,7.37771209,237.18,237.12,0.15193]
[1738301402221,4.2173,237.15,237.12,0.15193]
[1738301403623,7.4054407,237.16,237.12,0.15193]
[1738301403825,0.02772861,237.16,237.12,0.15193]
[1738301405220,4.24482861,237.16,237.12,0.15193]
[1738301405823,11.6225407,237.16,237.12,0.15193]
[1738301406423,7.4054407,237.16,237.12,0.15193]
[1738301406624,4.2177,237.13,237.12,0.15193]
[1738301411029,4.2177,237.13,237.11,0.03238565]
[1738301414832,7.37771209,237.14,237.11,0.03238565]
[1738301415530,11.59531209,237.14,237.11,0.03238565]
[1738301415729,7.37771209,237.12,237.11,0.03238565]
[1738301416130,11.59561209,237.12,237.11,0.03238565]
[1738301417531,4.2187,237.07,237.01,4.2198]
[1738301417727,7.37771209,237.06,237.01,4.2198]
[1738301418639,7.40740111,237.06,237.01,4.24655466]
[1738301420234,0.02968902,237.06,237.01,11.62426675]
[1738301421237,0.02968902,237.06,237.01,7.40446675]
[1738301421535,0.02968902,237.06,237.03,7.37771209]
[1738301423135,0.02968902,237.06,237.04,4.2193]
[1738301425441,0.02968902,237.06,237.02,4.2195]
[1738301426542,4.2178,237.13,237.07,4.2187]
[1738301426842,4.2178,237.13,237.07,11.59641209]
[1738301427735,0.02703751,237.12,237.08,4.25050175]
[1738301428742,0.02703751,237.12,237.11,11.59571209]
[1738301429241,0.02703751,237.12,237.11,7.37771209]
[1738301429842,0.02703751,237.12,237.09,11.59591209]
[1738301431542,0.02703751,237.12,237.1,4.2182]
[1738301431739,0.02703751,237.12,237.11,7.37771209]
[1738301434044,0.02703751,237.12,237.1,4.2182]
[1738301434845,0.02703751,237.12,237.08,0.03200175]
[1738301435041,7.37771209,237.11,237.08,0.03200175]
[1738301435347,7.37771209,237.09,237.08,0.03200175]
[1738301436239,11.59611209,237.09,237.08,0.03200175]
[1738301436845,4.2184,237.09,237.08,0.03200175]
[1738301437848,0.02703751,237.12,237.08,0.03200175]
[1738301438048,0.02703751,237.12,237.08,11.62821384]
[1738301438942,0.02703751,237.12,237.08,7.40971384]
[1738301440048,0.02703751,237.12,237.08,11.62811384]
[1738301441848,0.02703751,237.12,237.08,4.25040175]
[1738301447551,0.02703751,237.12,237.08,0.03200175]
[1738301447752,4.2181,237.11,237.08,0.03200175]
[1738301447952,11.59581209,237.11,237.08,0.03200175]
[1738301448252,11.59611209,237.09,237.08,0.03200175]
[1738301458059,7.37771209,237.09,237.08,0.03200175]
[1738301460662,4.2182,237.1,237.08,0.03200175]
[1738301473876,4.2184,237.09,237.08,0.03200175]
[1738301475677,11.59611209,237.09,237.08,0.03200175]
[1738301476774,4.2193,237.04,236.99,1.3523]
[1738301476974,7.37771209,237.03,236.99,1.3523]
[1738301477174,7.37771209,237.03,236.99,5.5725]
[1738301477375,11.59681209,237.05,236.99,5.5725]
[1738301477776,0.02784959,237.04,237.0,0.02862174]
[1738301477980,4.24714959,237.04,237.0,0.02862174]
[1738301478385,7.37771209,237.03,237.0,0.02862174]
[1738301478578,7.37771209,237.01,237.0,0.02862174]
[1738301480986,11.59751209,237.01,237.0,0.02862174]
[1738301482985,7.37771209,237.01,237.0,0.02862174]
[1738301483285,11.59751209,237.01,237.0,0.02862174]
[1738301494781,11.59751209,237.01,236.85,10.09451209]
[1738301494782,4.2213,236.93,236.85,10.09451209]
[1738301495089,7.37771209,236.93,236.85,10.09451209]
[1738301495989,0.02692553,236.91,236.87,0.03045018]
[1738301497687,0.02692553,236.91,236.87,4.25265018]
[1738301500695,4.2218,236.9,236.87,0.03045018]
[1738301500887,7.37771209,236.89,236.87,0.03045018]
[1738301501490,11.62623762,236.91,236.87,0.03045018]
[1738301503088,11.62623762,236.91,236.87,4.25275018]
[1738301504590,7.40463762,236.91,236.87,4.25275018]
[1738301506585,7.40463762,236.91,236.87,0.03045018]
[1738301506789,11.62623762,236.91,236.87,0.03045018]
[1738301513294,7.37771209,236.89,236.87,0.03045018]
[1738301514098,11.59971209,236.89,236.87,0.03045018]
[1738301514597,11.59971209,236.89,236.73,173.35625873]
[1738301514598,7.37771209,236.77,236.73,173.35625873]
[1738301515400,11.60181209,236.77,236.73,173.35625873]
[1738301515601,11.60181209,236.77,236.75,61.04608571]
[1738301516091,11.60181209,236.77,236.74,0.03103423]
[1738301516092,4.2244,236.75,236.74,0.03103423]
[1738301516297,7.37771209,236.75,236.7,61.04608571]
[1738301516498,7.37771209,236.71,236.7,61.04608571]
[1738301517199,7.37771209,236.75,236.7,61.04608571]
[1738301517397,0.03218279,236.73,236.7,61.04608571]
[1738301517598,7.40989488,236.73,236.7,61.04608571]
[1738301518599,7.40989488,236.73,236.68,0.02992919]
[1738301519000,0.03218279,236.73,236.68,7.40764128]
[1738301521102,11.63479488,236.73,236.68,0.02992919]
[1738301521402,7.40989488,236.73,236.68,0.02992919]
[1738301521602,0.03218279,236.73,236.68,7.40764128]
[1738301522103,0.03218279,236.73,236.68,11.63334128]
[1738301524206,7.40989488,236.73,236.68,0.02992919]
[1738301524609,7.37771209,236.71,236.68,0.02992919]
[1738301524801,11.60291209,236.71,236.68,0.02992919]
[1738301525612,4.2253,236.7,236.68,0.02992919]
[1738301527809,7.37771209,236.71,236.68,0.02992919]
[1738301528109,7.40989488,236.73,236.68,4.25542919]
[1738301528306,7.40989488,236.73,236.68,0.02992919]
[1738301528808,0.03218279,236.73,236.68,7.40764128]
[1738301529199,0.03218279,236.73,236.71,4.2251]
[1738301529404,7.37771209,236.81,236.72,7.37771209]
[1738301529606,7.37771209,236.81,236.74,7.37771209]
[1738301529798,7.37771209,236.85,236.78,7.37771209]
[1738301530609,0.031368,236.84,236.79,0.02810521]
[1738301532207,4.254268,236.84,236.79,0.02810521]
[1738301533210,0.031368,236.84,236.79,4.25180521]
[1738301534415,0.031368,236.84,236.79,0.02810521]
[1738301534913,7.37771209,236.83,236.79,0.02810521]
[1738301538115,0.031368,236.84,236.82,7.37771209]
[1738301538715,0.031368,236.84,236.82,4.2231]
[1738301538913,0.031368,236.84,236.8,7.37771209]
[1738301539113,0.031368,236.84,236.8,11.60111209]
[1738301539315,0.031368,236.84,236.8,4.2234]
[1738301540111,0.031368,236.84,236.79,0.02810521]
[1738301540308,7.37771209,236.83,236.79,0.02810521]
[1738301541216,4.2233,236.82,236.79,0.02810521]
[1738301542117,4.2236,236.8,236.79,0.02810521]
[1738301548122,9.99771209,236.81,236.67,4.2258]
[1738301548322,7.37771209,236.75,236.68,7.37771209]
[1738301549222,0.0323672,236.74,236.69,0.03237753]
[1738301550121,4.2248,236.73,236.69,0.03237753]
[1738301557033,0.0323672,236.74,236.69,0.03237753]
[1738301557034,0.0323672,236.74,236.71,4.225]
[1738301557228,0.0323672,236.74,236.69,0.03237753]
[1738301557229,0.0323672,236.74,236.72,7.37771209]
[1738301557934,0.0323672,236.74,236.73,4.2248]
[1738301559940,4.2236,236.8,236.75,4.2244]
[1738301560143,7.37771209,236.83,236.75,7.37771209]
[1738301560540,11.60081209,236.83,236.78,4.2238]
[1738301560939,7.37771209,236.83,236.78,4.2238]
[1738301561143,7.40954063,236.83,236.78,4.25323556]
[1738301563145,7.40954063,236.83,236.78,0.02943556]
[1738301563346,11.63254063,236.83,236.78,0.02943556]
[1738301563949,7.37771209,236.81,236.78,0.02943556]
[1738301565649,11.63254063,236.83,236.78,0.02943556]
[1738301567444,7.40954063,236.83,236.78,0.02943556]
[1738301567648,4.2233,236.82,236.78,0.02943556]
[1738301570151,0.03182854,236.83,236.78,0.02943556]
[1738301570451,0.03182854,236.83,236.8,4.2235]
[1738301570949,0.03182854,236.83,236.81,7.37771209]
[1738301571957,0.03182854,236.83,236.82,4.2232]
[1738301572850,0.03182854,236.83,236.81,7.37771209]
[1738301573050,0.03182854,236.83,236.8,4.2234]
[1738301576854,0.03182854,236.83,236.78,4.25313556]
[1738301578157,4.2232,236.82,236.78,4.25313556]
[1738301578654,11.60091209,236.82,236.78,0.02943556]
[1738301580552,4.2234,236.81,236.78,0.02943556]
[1738301580756,7.37771209,236.82,236.78,0.02943556]
[1738301581553,4.2234,236.81,236.78,0.02943556]
[1738301584162,7.37771209,236.82,236.78,0.02943556]
[1738301585057,11.60101209,236.82,236.78,0.02943556]
[1738301585861,4.2234,236.81,236.78,0.02943556]
[1738301589667,0.03182854,236.83,236.81,4.2233]
[1738301589866,0.03182854,236.83,236.81,11.60101209]
[1738301590058,0.03182854,236.83,236.81,7.37771209]
[1738301591970,0.03182854,236.83,236.79,7.37771209]
[1738301592268,0.03182854,236.83,236.8,4.2234]
[1738301592459,0.03182854,236.83,236.79,7.37771209]
[1738301593570,0.03182854,236.83,236.82,4.2232]
[1738301607373,0.03182854,236.83,236.79,7.37771209]
[1738301607586,4.2232,236.82,236.78,0.02943556]
[1738301607778,7.40954063,236.83,236.78,0.02943556]
[1738301608573,7.37771209,236.81,236.78,0.02943556]
[1738301610180,4.2236,236.8,236.78,0.02943556]
[1738301611581,11.60141209,236.79,236.78,0.02943556]
[1738301615683,4.2245,236.75,236.71,7.37771209]
[1738301616782,4.2245,236.75,236.69,7.37771209]
[1738301616983,4.25560563,236.75,236.71,0.03094053]
[1738301617186,7.40881772,236.75,236.71,0.03094053]
[1738301617381,4.2248,236.73,236.71,0.03094053]
[1738301618579,7.40881772,236.75,236.71,0.03094053]
[1738301620086,4.2249,236.73,236.71,0.03094053]
[1738301623589,0.03110563,236.75,236.71,0.03094053]
[1738301625091,4.25570563,236.75,236.71,0.03094053]
[1738301627690,4.2246,236.74,236.71,0.03094053]
[1738301634600,11.63321772,236.75,236.71,0.03094053]
[1738301634800,4.25550563,236.75,236.71,0.03094053]
[1738301643207,4.2247,236.74,236.71,0.03094053]
[1738301646010,0.03110563,236.75,236.71,0.03094053]
[1738301646605,0.03110563,236.75,236.73,4.2248]
[1738301646809,0.03110563,236.75,236.71,7.40865262]
[1738301647411,0.03110563,236.75,236.73,7.37771209]
[1738301648211,0.03110563,236.75,236.74,4.2246]
[1738301649707,0.03110563,236.75,236.73,7.37771209]
[1738301650712,0.03110563,236.75,236.73,11.60231209]
[1738301651705,0.03110563,236.75,236.73,7.37771209]
[1738301651909,0.03110563,236.75,236.74,4.2246]
[1738301666131,11.60728408,236.85,236.79,4.2232]
[1738301666330,4.2224,236.84,236.79,7.37771209]
[1738301666731,7.37771209,236.9,236.83,7.37771209]
[1738301667231,0.0281258,236.88,236.85,4.2221]
[1738301667630,0.0281258,236.88,236.84,0.03045805]
[1738301667826,0.0281258,236.88,236.85,7.37771209]
[1738301668232,0.0281258,236.88,236.87,7.37771209]
[1738301669232,0.0281258,236.88,236.87,11.59961209]
[1738301671827,0.0281258,236.88,236.87,4.2219]
[1738301673239,0.0281258,236.88,236.87,11.59961209]
[1738301679939,4.2201,236.97,236.92,4.2209]
[1738301680142,4.2201,236.97,236.92,7.37771209]
[1738301680944,4.24767161,236.97,236.92,7.40993025]
[1738301681143,4.24767161,236.97,236.93,4.2208]
[1738301682447,0.02757161,236.97,236.93,4.2208]
[1738301682644,0.02757161,236.97,236.96,4.2203]
[1738301682848,0.02757161,236.97,236.96,11.59801209]
[1738301687952,7.37771209,237.08,236.96,7.37771209]
[1738301688152,4.2181,237.09,237.03,11.59661209]
[1738301689257,0.03160024,237.08,237.04,0.0324409]
[1738301689555,4.24980024,237.08,237.04,0.0324409]
[1738301690152,0.03160024,237.08,237.06,4.2185]
[1738301690547,0.03160024,237.08,237.07,11.59601209]
[1738301704467,0.03160024,237.08,237.07,7.37771209]
[1738301704669,0.03160024,237.08,237.05,7.37771209]
[1738301705072,0.03160024,237.08,237.07,7.37771209]
[1738301705276,0.03160024,237.08,237.05,7.37771209]
[1738301705470,0.03160024,237.08,237.04,0.0324409]
[1738301705975,7.37771209,237.06,236.99,7.37771209]
[1738301706569,4.2191,237.03,236.99,7.37771209]
[1738301706771,4.2191,237.03,236.97,7.37771209]
[1738301707069,4.2195,237.01,236.98,0.03242963]
[1738301707269,7.40479876,237.02,236.98,0.03242963]
[1738301707474,7.37771209,237.0,236.93,7.37771209]
[1738301708071,1.4589,237.01,236.95,7.37771209]
[1738301708575,1.4589,237.01,236.96,0.02817856]
[1738301709075,5.6784,237.01,236.96,0.02817856]
[1738301709872,4.2197,237.0,236.96,0.02817856]
[1738301710075,11.59741209,237.0,236.96,0.02817856]
[1738301712874,4.2197,236.99,236.96,0.02817856]
[1738301714275,11.59731209,237.0,236.96,0.02817856]
[1738301715975,2.9094,237.01,236.96,0.02817856]
[1738301716578,7.1288,237.01,236.96,4.24837856]
[1738301718181,4.2196,237.0,236.96,0.02817856]
[1738301718375,11.59731209,237.0,236.96,0.02817856]
[1738301718979,7.37771209,237.0,236.96,4.24837856]
[1738301721079,11.59731209,237.0,236.96,0.02817856]
[1738301721882,11.59731209,237.0,236.96,4.24837856]
[1738301724282,4.2198,236.99,236.96,0.02817856]
[1738301725683,11.59781209,236.98,236.96,0.02817856]
[1738301726486,4.2201,236.98,236.96,0.02817856]
[1738301728087,7.37771209,237.0,236.96,0.02817856]
[1738301728284,4.2196,237.0,236.96,4.24837856]
[1738301728787,2.9094,237.01,236.98,4.2198]
[1738301731489,2.9094,237.01,236.96,0.02817856]
[1738301731686,4.2196,237.0,236.96,4.24827856]
[1738301735090,2.9094,237.01,236.96,0.02817856]
[1738301735290,7.1288,237.01,236.97,4.2201]
[1738301736785,4.2194,237.01,236.97,4.2201]
[1738301736986,0.02708667,237.02,236.99,11.59731209]
[1738301737185,0.02708667,237.02,237.01,7.37771209]
[1738301738087,0.02708667,237.02,237.01,11.59711209]
[1738301738592,7.37771209,237.12,237.01,7.37771209]
[1738301738890,2.8214,237.13,237.06,11.59621209]
[1738301739083,2.8214,237.13,237.06,7.37771209]
[1738301739282,2.8214,237.13,237.08,4.2181]
[1738301739889,0.0275712,237.13,237.08,11.62786532]
[1738301740186,0.0275712,237.13,237.09,4.218]
[1738301740793,0.0275712,237.13,237.1,11.59551209]
[1738301741893,0.0275712,237.13,237.1,7.37771209]
[1738301746192,0.0275712,237.13,237.1,11.59551209]
[1738301747493,0.0275712,237.13,237.12,7.37771209]
[1738301759208,0.0275712,237.13,237.1,7.37771209]
[1738301759409,7.37771209,237.12,237.08,0.03205323]
[1738301760507,4.2449712,237.13,237.08,0.03205323]
[1738301761507,0.0275712,237.13,237.09,4.2179]
[1738301763509,0.0275712,237.13,237.1,7.37771209]
[1738301763710,0.0275712,237.13,237.12,4.2174]
[1738301765210,0.0275712,237.13,237.12,11.59511209]
[1738301769816,11.58855657,237.23,237.18,4.2163]
[1738301770110,11.58855657,237.23,237.18,7.37771209]
[1738301770317,4.2158,237.21,237.16,7.37771209]
[1738301771114,4.24258987,237.21,237.16,11.62256913]
[1738301771514,4.24258987,237.21,237.16,7.40586913]
[1738301771711,4.24258987,237.21,237.16,4.24485704]
[1738301774527,4.2161,237.2,237.16,0.02815704]
[1738301775228,0.02678987,237.21,237.16,0.02815704]
[1738301775427,4.2162,237.19,237.16,0.02815704]
[1738301775628,7.37771209,237.18,237.16,0.02815704]
[1738301777123,4.2165,237.17,237.16,0.02815704]
[1738301777630,7.37771209,237.18,237.06,0.14871]
[1738301777928,7.37771209,237.12,237.06,0.14871]
[1738301778826,0.03026768,237.11,237.07,0.02766514]
[1738301779128,4.2178,237.1,237.07,0.02766514]
[1738301779829,4.218,237.09,237.07,0.02766514]
[1738301782224,4.24806768,237.11,237.07,0.02766514]
[1738301782523,0.03026768,237.11,237.07,0.02766514]
[1738301784132,4.2178,237.1,237.07,0.02766514]
[1738301788433,4.2181,237.08,237.07,0.02766514]
[1738301791932,4.218,237.1,237.07,0.02766514]
[1738301792832,0.03026768,237.11,237.08,7.37771209]
[1738301793035,0.03026768,237.11,237.1,7.37771209]
[1738301793535,0.03026768,237.11,237.1,11.59551209]
[1738301797941,0.03026768,237.11,237.1,7.37771209]
[1738301798933,0.03026768,237.11,237.08,7.37771209]
[1738301800143,0.03026768,237.11,237.08,11.59581209]
[1738301804851,0.03026768,237.11,237.09,4.2179]
[1738301805749,0.03026768,237.11,237.1,4.2178]
[1738301809352,0.03026768,237.11,237.1,11.59551209]
[1738301811448,4.2153,237.25,237.2,4.216]
[1738301811645,4.2153,237.25,237.2,11.59371209]
[1738301812046,4.2153,237.25,237.2,4.216]
[1738301812344,83.59209326,237.24,237.2,4.24659543]
[1738301813260,87.80739326,237.24,237.2,0.03059543]
[1738301814257,83.59209326,237.24,237.2,4.24659543]
[1738301816360,83.59209326,237.24,237.21,4.2158]
[1738301816861,83.59209326,237.24,237.22,11.59341209]
[1738301817068,83.59209326,237.24,237.22,7.37771209]
[1738301817557,0.03209326,237.24,237.22,7.37771209]
[1738301818253,0.03209326,237.24,237.23,4.2155]
[1738301823260,0.03209326,237.24,237.22,7.37771209]
[1738301823466,0.03209326,237.24,237.2,0.03059543]
[1738301825265,4.2155,237.23,237.2,0.03059543]
[1738301826363,4.2157,237.22,237.2,0.03059543]
[1738301827263,0.03209326,237.24,237.2,0.03059543]
[1738301827561,4.24739326,237.24,237.2,7.40830752]
[1738301829165,4.24739326,237.24,237.2,11.62420752]
[1738301829869,0.03209326,237.24,237.2,11.62420752]
[1738301830064,0.03209326,237.24,237.22,11.59331209]
[1738301831969,4.213,237.37,237.3,4.2142]
[1738301832169,4.213,237.37,237.32,7.37771209]
[1738301833072,4.24080143,237.37,237.32,7.41010693]
[1738301838775,7.37771209,237.35,237.32,0.03239484]
[1738301839366,4.2134,237.35,237.32,0.03239484]
[1738301841478,7.37771209,237.35,237.32,0.03239484]
[1738301842580,11.59141209,237.33,237.32,0.03239484]
[1738301844482,4.2146,237.29,237.24,11.59281209]
[1738301844682,7.37771209,237.33,237.24,7.37771209]
[1738301844982,4.2143,237.3,237.25,4.2151]
[1738301845580,4.24661974,237.3,237.25,4.24200922]
[1738301846087,4.2144,237.29,237.26,7.37771209]
[1738301847273,0.03231974,237.3,237.26,7.37771209]
[1738301847478,4.24661974,237.3,237.26,7.37771209]
[1738301847679,0.03231974,237.3,237.26,7.37771209]
[1738301847880,0.03231974,237.3,237.25,0.02690922]
[1738301848279,0.03231974,237.3,237.28,7.37771209]
[1738301850076,0.03231974,237.3,237.29,4.2144]
[1738301854286,0.03231974,237.3,237.28,7.37771209]
[1738301855891,0.03231974,237.3,237.29,4.2144]
[1738301860090,0.03231974,237.3,237.28,7.37771209]
[1738301860294,0.03231974,237.3,237.27,4.2148]
[1738301863699,4.24661974,237.3,237.26,7.37771209]
[1738301864598,0.03231974,237.3,237.26,11.59261209]
[1738301870701,0.03231974,237.3,237.27,4.2146]
[1738301871302,0.03231974,237.3,237.26,7.37771209]
[1738301873104,0.03231974,237.3,237.26,11.59261209]
[1738301875502,4.24651974,237.3,237.26,11.59261209]
[1738301880404,4.2144,237.29,237.26,7.37771209]
[1738301881314,0.03231974,237.3,237.25,0.02690922]
[1738301881515,4.2148,237.27,237.25,0.02690922]
[1738301883216,0.03231974,237.3,237.25,0.02690922]
[1738301883516,4.2149,237.26,237.25,0.02690922]
[1738301887114,0.03231974,237.3,237.25,0.02690922]
[1738301887316,86.2461377,237.7,237.3,12.68]
[1738301887513,7.37771209,237.91,237.68,7.37771209]
[1738301887716,4.2044,237.86,237.74,7.37771209]
[1738301887914,7.37771209,237.81,237.67,7.37771209]
[1738301888117,7.37771209,237.72,237.61,7.37771209]
[1738301888418,7.37771209,237.66,237.64,0.02804407]
[1738301888609,7.37771209,237.66,237.55,7.37771209]
[1738301888815,7.37771209,237.66,237.56,20.74958221]
[1738301889111,7.37771209,237.66,237.57,20.74958221]